bitfinex/quotes_SOLUSD_20240809
["timestamp","ask_amount","ask_price","bid_price","bid_amount"]
[1723226067276,6.5265,153.23,153.17,6.5286]
[1723226067653,6.5257,153.24,153.19,6.5278]
[1723226067975,6.5266,153.22,153.15,21.8061]
[1723226068588,6.5266,153.22,153.15,6.5288]
[1723226068950,6.5266,153.22,153.17,6.5286]
[1723226069658,0.12549,153.23,153.15,6.5288]
[1723226069858,20.12549,153.23,153.15,6.5288]
[1723226070076,6.5271,153.21,153.15,6.5288]
[1723226070377,82.05098,153.2,153.11,7.1270353]
[1723226070572,102.05098,153.2,153.11,7.1270353]
[1723226070777,6.5282,153.19,153.14,6.5299]
[1723226070972,26.5274,153.2,153.15,6.5292]
[1723226071278,6.5282,153.18,153.13,6.5303]
[1723226071792,36.8,153.18,153.11,0.8353353]
[1723226071979,6.5287,153.17,153.12,6.5308]
[1723226072179,0.25098,153.19,153.11,7.3664353]
[1723226072362,43.57958,153.18,153.11,0.8353353]
[1723226072560,6.65409,153.18,153.11,0.8353353]
[1723226072762,0.12549,153.17,153.11,0.8353353]
[1723226072953,6.53,153.14,153.11,0.8353353]
[1723226073148,37.05098,153.18,153.11,0.8353353]
[1723226073149,36.92549,153.18,153.11,0.8353353]
[1723226073376,6.5295,153.15,153.11,0.8353353]
[1723226073672,6.5301,153.14,153.11,0.8353353]
[1723226073848,20.0,153.16,153.11,0.8353353]
[1723226074372,6.5296,153.15,153.11,0.8353353]
[1723226074574,20.0,153.16,153.11,7.3665353]
[1723226074755,6.5283,153.18,153.13,6.5303]
[1723226074964,6.5287,153.17,153.12,6.5307]
[1723226075586,36.8,153.18,153.11,0.8353353]
[1723226075761,6.5298,153.15,153.11,7.3665353]
[1723226075956,6.5308,153.12,153.11,0.8353353]
[1723226076222,20.0,153.12,153.11,0.8353353]
[1723226076380,26.5308,153.12,153.11,0.8353353]
[1723226076575,20.0,153.12,153.11,0.8353353]
[1723226076773,20.12549,153.15,153.11,0.8353353]
[1723226076974,51.78128,153.14,153.11,0.8353353]
[1723226077159,26.5296,153.15,153.11,0.8353353]
[1723226077479,6.5301,153.14,153.11,0.8353353]
[1723226077659,6.5307,153.13,153.11,0.8353353]
[1723226077978,20.0,153.15,153.11,0.8353353]
[1723226078181,36.8,153.2,153.11,0.8353353]
[1723226078557,6.5291,153.16,153.11,7.3665353]
[1723226079680,36.8,153.2,153.12,6.5307]
[1723226079885,36.8,153.2,153.11,0.8353353]
[1723226080187,36.8,153.13,153.11,0.8353353]
[1723226080384,6.5308,153.12,153.11,0.8353353]
[1723226080760,43.3304,153.13,153.11,0.8353353]
[1723226080976,6.5305,153.13,153.11,0.8353353]
[1723226081167,6.53,153.14,153.11,0.8353353]
[1723226081987,0.12549,153.15,153.11,0.8353353]
[1723226082178,6.5283,153.18,153.12,6.5307]
[1723226082379,6.529,153.17,153.11,7.3665353]
[1723226082585,6.5292,153.16,153.11,7.3665353]
[1723226082766,36.8,153.21,153.11,0.8353353]
[1723226082964,53.1155,153.23,153.11,0.8353353]
[1723226083181,36.8,153.23,153.15,6.5291]
[1723226083401,36.8,153.23,153.17,6.5283]
[1723226083402,6.5266,153.22,153.17,6.5283]
[1723226083582,6.527,153.21,153.16,6.5291]
[1723226083878,6.5266,153.22,153.17,6.5286]
[1723226084390,25.21932903,153.27,153.11,0.8353353]
[1723226084391,36.8,153.28,153.15,6.0947]
[1723226084593,36.8,153.28,153.16,15.5511]
[1723226084594,36.8,153.23,153.16,15.5511]
[1723226085302,43.3265,153.23,153.17,6.5286]
[1723226085802,6.5267,153.22,153.16,22.0801]
[1723226086676,6.5272,153.21,153.16,15.5511]
[1723226086873,6.5279,153.19,153.15,6.0947]
[1723226087495,6.5274,153.2,153.15,6.0947]
[1723226087706,36.8,153.23,153.15,6.0947]
[1723226087993,6.5269,153.22,153.17,6.5283]
[1723226088199,43.3261,153.23,153.15,6.0947]
[1723226088565,6.5267,153.22,153.17,6.5286]
[1723226088765,36.8,153.2,153.15,6.0947]
[1723226089087,6.5283,153.18,153.14,6.5299]
[1723226089406,36.8,153.18,153.12,16.6268]
[1723226089573,36.8,153.18,153.13,6.5303]
[1723226090203,43.3283,153.18,153.13,6.5303]
[1723226090401,43.3274,153.2,153.15,6.5294]
[1723226091149,6.5285,153.18,153.13,6.5302]
[1723226091311,6.5278,153.19,153.15,6.5295]
[1723226091611,36.8,153.2,153.15,6.5295]
[1723226092178,43.3277,153.2,153.15,6.5295]
[1723226092389,36.8,153.2,153.12,16.6268]
[1723226092808,43.3277,153.2,153.15,6.5295]
[1723226093008,6.528,153.19,153.14,6.5299]
[1723226093396,43.3274,153.2,153.15,6.5294]
[1723226094287,36.8,153.2,153.12,16.6268]
[1723226094491,6.5283,153.18,153.14,6.5299]
[1723226094699,6.5279,153.19,153.14,6.5299]
[1723226095205,36.8,153.2,153.12,16.6268]
[1723226095206,43.3275,153.2,153.15,6.5295]
[1723226096315,36.8,153.2,153.17,6.5286]
[1723226096502,36.8,153.22,153.17,6.5286]
[1723226096893,6.5274,153.2,153.16,6.5291]
[1723226097216,6.5274,153.2,153.15,6.5295]
[1723226097420,6.5274,153.2,153.16,6.529]
[1723226097617,6.527,153.21,153.16,6.529]
[1723226098213,6.527,153.21,153.17,6.5286]
[1723226098921,36.8,153.24,153.12,53.4268]
[1723226099117,20.0,153.23,153.19,6.5277]
[1723226099303,6.76156358,153.25,153.2,6.5273]
[1723226099304,13.28686358,153.25,153.2,6.5273]
[1723226099606,6.5257,153.24,153.2,6.5273]
[1723226099805,6.5261,153.23,153.19,6.5278]
[1723226099987,6.5261,153.23,153.14,36.8]
[1723226100208,6.5261,153.23,153.18,6.5278]
[1723226100517,6.5258,153.24,153.19,6.5276]
[1723226100716,53.1127,153.26,153.12,16.6268]
[1723226100901,59.87202908,153.26,153.12,53.4268]
[1723226101097,6.5266,153.22,153.17,6.5283]
[1723226101931,6.5262,153.23,153.18,6.5282]
[1723226102105,45.12549,153.25,153.14,36.8]
[1723226102311,43.55932908,153.26,153.14,36.8]
[1723226102612,6.5264,153.23,153.18,6.5279]
[1723226103710,6.5264,153.23,153.12,53.4268]
[1723226104232,36.8,153.24,153.12,53.4268]
[1723226104721,6.5266,153.22,153.17,6.5285]
[1723226104927,6.5266,153.22,153.12,53.4268]
[1723226104928,6.5266,153.22,153.18,6.5282]
[1723226105428,6.5266,153.22,153.17,6.5286]
[1723226106218,6.5262,153.23,153.19,6.5277]
[1723226106723,43.55932908,153.26,153.14,36.8]
[1723226106917,50.08442908,153.26,153.21,6.5265]
[1723226107294,50.08442908,153.26,153.16,36.8]
[1723226107295,13.28422908,153.26,153.16,36.8]
[1723226107509,6.5249,153.26,153.21,6.5266]
[1723226107911,6.5254,153.25,153.2,6.5273]
[1723226108117,36.8,153.24,153.12,53.4268]
[1723226108547,36.8,153.24,153.13,0.12549]
[1723226108700,6.5265,153.23,153.17,6.5283]
[1723226109017,36.8,153.24,153.17,6.5283]
[1723226109222,16.3148,153.24,153.14,6.5298]
[1723226109403,6.5276,153.2,153.12,16.6268]
[1723226109906,36.8,153.21,153.16,6.5287]
[1723226110295,6.5269,153.22,153.17,6.5285]
[1723226110730,36.8,153.23,153.15,6.5292]
[1723226111229,36.8,153.21,153.14,6.5298]
[1723226111521,6.5283,153.18,153.14,6.5299]
[1723226111930,36.8,153.21,153.12,16.6268]
[1723226112118,6.0283,153.25,153.12,16.6268]
[1723226112119,43.3262,153.23,153.18,6.528]
[1723226112307,6.5265,153.22,153.18,6.528]
[1723226112509,43.3262,153.23,153.18,6.528]
[1723226112915,6.5257,153.24,153.2,6.5274]
[1723226113107,43.3253,153.25,153.2,6.5274]
[1723226113305,6.5257,153.24,153.19,6.5277]
[1723226113631,6.5257,153.24,153.14,36.8]
[1723226113815,36.8,153.27,153.14,36.8]
[1723226114001,36.8,153.27,153.16,36.8]
[1723226114203,43.3245,153.27,153.22,6.5262]
[1723226114417,52.512,153.29,153.19,22.8619]
[1723226115128,6.5244,153.27,153.19,22.8619]
[1723226115314,39.43554811,153.31,153.19,22.8619]
[1723226115517,36.8,153.31,153.2,36.8]
[1723226115719,6.5228,153.31,153.26,6.5247]
[1723226115921,6.5223,153.32,153.27,6.5242]
[1723226116119,6.5227,153.31,153.27,6.5242]
[1723226116427,6.5232,153.3,153.26,6.5247]
[1723226116628,6.5228,153.31,153.26,6.5247]
[1723226118229,6.5223,153.32,153.27,6.5244]
[1723226118435,36.8,153.35,153.25,15.2838]
[1723226118619,43.321,153.35,153.3,6.523]
[1723226118937,6.5206,153.36,153.27,6.3527]
[1723226119293,6.76732914,153.38,153.27,6.3527]
[1723226119294,6.76732914,153.38,153.28,36.8]
[1723226119592,6.76732914,153.38,153.3,36.8]
[1723226119869,6.5185,153.41,153.36,6.5202]
[1723226120021,36.8,153.39,153.33,15.1593]
[1723226120440,6.5211,153.35,153.3,6.5227]
[1723226120613,6.5206,153.36,153.31,6.5227]
[1723226121018,6.521,153.35,153.3,6.5231]
[1723226121320,6.521,153.35,153.31,6.5227]
[1723226121520,36.8,153.37,153.32,6.5222]
[1723226121722,36.8,153.39,153.28,51.9593]
[1723226121919,6.5189,153.4,153.35,6.5209]
[1723226122111,36.8,153.41,153.36,6.5205]
[1723226122112,43.3185,153.41,153.36,6.5205]
[1723226122337,6.5185,153.41,153.36,6.5205]
[1723226122927,6.5181,153.42,153.37,6.52]
[1723226123230,6.5185,153.41,153.36,6.5205]
[1723226124042,6.5186,153.41,153.37,15.4655]
[1723226124342,6.5189,153.4,153.37,15.4655]
[1723226124512,6.5184,153.41,153.37,15.4655]
[1723226125622,43.3181,153.42,153.37,21.9856]
[1723226125927,43.3175,153.44,153.39,6.5193]
[1723226126135,6.5181,153.42,153.37,21.9855]
[1723226126340,6.519,153.4,153.35,12.8956]
[1723226126514,36.8,153.4,153.35,6.375]
[1723226127043,6.5184,153.41,153.36,6.5205]
[1723226127346,43.3181,153.42,153.37,6.5201]
[1723226127943,43.318,153.42,153.37,6.5201]
[1723226128321,36.8,153.42,153.35,12.8957]
[1723226128522,6.5201,153.38,153.35,6.375]
[1723226128845,36.8,153.39,153.33,16.3513]
[1723226129320,36.8,153.41,153.33,16.3513]
[1723226129520,36.8,153.41,153.37,6.5198]
[1723226129756,43.3185,153.41,153.37,6.5198]
[1723226129940,43.3185,153.41,153.36,6.5205]
[1723226130320,36.8,153.41,153.33,16.3513]
[1723226130537,6.5193,153.39,153.34,6.5211]
[1723226131339,43.3194,153.39,153.34,6.5211]
[1723226131951,6.5189,153.4,153.35,6.5209]
[1723226132531,36.8,153.43,153.34,1.30416198]
[1723226132733,26.5181,153.42,153.37,6.5197]
[1723226133023,20.0,153.42,153.38,6.5195]
[1723226133637,6.5173,153.44,153.39,6.5193]
[1723226133845,26.5173,153.44,153.39,6.5193]
[1723226134148,36.8,153.43,153.33,16.3513]
[1723226134447,6.5198,153.38,153.33,22.8731]
[1723226134945,43.3193,153.39,153.34,6.5212]
[1723226135163,6.5198,153.38,153.34,6.5212]
[1723226135368,36.8,153.39,153.33,22.8731]
[1723226136064,43.3194,153.39,153.34,6.5213]
[1723226136565,6.5199,153.38,153.33,16.3513]
[1723226137161,6.76709748,153.42,153.38,6.5195]
[1723226137347,6.5176,153.43,153.38,6.5196]
[1723226137546,36.8,153.45,153.33,16.3513]
[1723226137759,36.8,153.41,153.33,16.3513]
[1723226137953,6.5204,153.37,153.33,16.3513]
[1723226138167,6.5206,153.36,153.33,16.3513]
[1723226138850,53.0992,153.39,153.31,6.1977]
[1723226139055,6.5206,153.36,153.31,12.72]
[1723226139255,6.521,153.35,153.31,6.1977]
[1723226139453,36.8,153.35,153.31,6.1977]
[1723226139669,6.5223,153.32,153.28,15.7431]
[1723226140046,6.5219,153.33,153.28,15.7431]
[1723226140244,6.5219,153.33,153.28,22.267]
[1723226140452,6.5219,153.33,153.28,15.7431]
[1723226140662,6.5207,153.36,153.28,15.7431]
[1723226141048,6.521,153.35,153.31,6.5223]
[1723226141255,6.521,153.35,153.3,6.523]
[1723226141753,6.5214,153.34,153.29,6.5234]
[1723226142149,36.8,153.35,153.28,15.7431]
[1723226142460,0.25098,153.34,153.28,15.7431]
[1723226142657,6.5224,153.32,153.28,15.7431]
[1723226143064,6.5219,153.33,153.28,22.267]
[1723226143564,6.5227,153.31,153.27,6.2784]
[1723226143754,6.5223,153.32,153.27,12.8027]
[1723226143961,6.5223,153.32,153.28,6.5239]
[1723226144154,43.321,153.35,153.28,1.3047634]
[1723226144773,6.5221,153.33,153.27,6.2784]
[1723226144971,6.5223,153.32,153.27,6.2784]
[1723226145141,36.8,153.35,153.27,6.2784]
[1723226145349,6.5228,153.31,153.27,6.2784]
[1723226146171,6.5224,153.32,153.27,12.8028]
[1723226146473,36.8,153.31,153.27,6.2784]
[1723226146654,6.5232,153.3,153.27,6.2784]
[1723226146987,6.5232,153.3,153.26,6.5247]
[1723226147146,6.5232,153.3,153.24,15.5801]
[1723226147643,6.5232,153.3,153.26,6.5248]
[1723226147856,36.8,153.31,153.27,6.5242]
[1723226148161,36.8,153.33,153.24,15.5801]
[1723226148353,253.2,153.43,153.33,6.5215]
[1723226148354,36.8,153.37,153.33,6.5215]
[1723226148682,9.01073871,153.4,153.26,36.8]
[1723226148683,36.8,153.39,153.26,36.8]
[1723226148861,6.5205,153.37,153.32,6.5221]
[1723226149253,6.76361726,153.38,153.31,6.5227]
[1723226149458,6.521,153.35,153.3,6.523]
[1723226149764,36.8,153.37,153.25,0.37647]
[1723226149950,36.8,153.35,153.29,6.5235]
[1723226150149,6.5214,153.34,153.29,6.5235]
[1723226150371,43.3211,153.35,153.3,6.523]
[1723226150961,6.5211,153.35,153.3,6.523]
[1723226151171,6.5211,153.35,153.31,6.5225]
[1723226151767,0.12549,153.36,153.26,36.8]
[1723226151996,0.12549,153.36,153.32,6.5222]
[1723226152274,20.12549,153.36,153.32,6.5222]
[1723226152473,20.12549,153.36,153.28,36.8]
[1723226152474,20.0,153.36,153.28,36.8]
[1723226152677,20.0,153.37,153.31,6.549]
[1723226152854,6.5221,153.33,153.28,6.5239]
[1723226153260,6.5215,153.34,153.29,6.5234]
[1723226153462,6.5215,153.34,153.3,6.523]
[1723226153795,6.5215,153.34,153.27,6.549]
[1723226153967,6.5215,153.34,153.29,6.5235]
[1723226155687,6.5219,153.33,153.29,6.5235]
[1723226155869,36.8,153.33,153.27,6.549]
[1723226156181,6.5226,153.32,153.27,13.0731]
[1723226156472,36.8,153.33,153.27,6.549]
[1723226157281,36.8,153.33,153.27,13.0733]
[1723226157581,6.5231,153.3,153.25,6.5249]
[1723226157760,6.5236,153.29,153.24,22.1056]
[1723226157962,36.8,153.29,153.23,12.8229]
[1723226158150,36.8,153.29,153.23,6.2969]
[1723226158481,43.3244,153.27,153.22,6.5265]
[1723226159167,36.8,153.27,153.23,6.526]
[1723226159362,45.25098,153.28,153.2,15.3729]
[1723226159656,36.92549,153.33,153.29,6.5234]
[1723226159866,57.05098,153.33,153.29,6.5234]
[1723226160174,63.3219,153.33,153.27,6.524]
[1723226160389,63.3219,153.33,153.28,6.5239]
[1723226160683,6.5232,153.3,153.2,52.1729]
[1723226160849,36.8,153.31,153.2,52.1729]
[1723226161051,6.5232,153.3,153.2,52.1729]
[1723226161496,43.3228,153.31,153.26,6.5248]
[1723226161790,51.77418,153.3,153.25,6.5252]
[1723226162021,6.5244,153.27,153.22,6.5264]
[1723226162158,6.5249,153.26,153.21,6.5269]
[1723226162358,36.8,153.27,153.2,15.3729]
[1723226162581,0.12549,153.28,153.2,15.3729]
[1723226162882,36.8,153.31,153.2,52.1729]
[1723226163059,6.5217,153.34,153.29,6.5235]
[1723226163463,6.522,153.33,153.28,6.5239]
[1723226163672,50.07732111,153.35,153.29,6.5235]
[1723226163972,6.5227,153.31,153.27,6.524]
[1723226164174,6.5231,153.3,153.26,6.5248]
[1723226164375,36.8,153.31,153.2,52.1729]
[1723226164694,6.5236,153.29,153.24,6.5256]
[1723226164910,65.0,153.3,153.2,52.1729]
[1723226165118,20.0,153.3,153.26,6.5244]
[1723226165265,36.8,153.3,153.2,15.3729]
[1723226165499,0.12549,153.29,153.2,15.3729]
[1723226165688,6.5243,153.28,153.2,15.3729]
[1723226165885,6.5236,153.29,153.2,15.3729]
[1723226166092,88.3232,153.3,153.25,6.5251]
[1723226166300,88.3232,153.3,153.2,15.3729]
[1723226166490,81.8,153.3,153.26,6.5248]
[1723226166997,26.64829,153.31,153.27,6.5244]
[1723226167288,20.0,153.31,153.29,6.5234]
[1723226167593,6.5223,153.32,153.28,6.5239]
[1723226167778,20.0,153.31,153.28,6.5239]
[1723226168169,6.5219,153.33,153.28,6.5239]
[1723226168379,20.0,153.32,153.29,6.5234]
[1723226168784,20.0,153.32,153.27,6.4357]
[1723226168785,36.8,153.36,153.27,22.827]
[1723226168985,6.5213,153.35,153.3,6.523]
[1723226170295,6.5214,153.34,153.3,6.523]
[1723226171192,6.5214,153.34,153.29,6.5235]
[1723226171999,6.5219,153.33,153.29,6.5235]
[1723226173000,6.5215,153.34,153.29,6.5235]
[1723226173200,51.77288,153.33,153.27,22.827]
[1723226173393,6.64739,153.33,153.28,6.5236]
[1723226174405,6.5214,153.34,153.27,22.827]
[1723226174807,6.75714118,153.36,153.28,36.8]
[1723226175101,6.5226,153.32,153.27,29.3511]
[1723226175281,6.5234,153.3,153.27,22.827]
[1723226175686,6.5228,153.31,153.27,22.827]
[1723226176096,6.5233,153.3,153.27,22.827]
[1723226176318,36.8,153.3,153.24,6.5256]
[1723226176610,6.5236,153.29,153.24,6.5256]
[1723226176815,6.5236,153.29,153.21,22.6298]
[1723226176816,36.8,153.28,153.21,22.6298]
[1723226176984,6.5245,153.27,153.22,6.5262]
[1723226177393,6.5238,153.29,153.21,22.6298]
[1723226177593,36.8,153.3,153.21,22.6298]
[1723226177804,20.0,153.29,153.21,22.6298]
[1723226178013,0.25098,153.31,153.26,6.5248]
[1723226178217,65.25098,153.31,153.21,22.6298]
[1723226178386,36.92549,153.3,153.21,22.6298]
[1723226178588,45.25098,153.29,153.21,22.6298]
[1723226178889,51.77458,153.29,153.24,6.5256]
[1723226180005,6.64909,153.29,153.21,22.6298]
[1723226180218,0.12549,153.29,153.25,6.5252]
[1723226180512,6.5232,153.3,153.25,6.5252]
[1723226180910,26.64819,153.31,153.26,6.5247]
[1723226181511,20.0,153.31,153.28,6.5238]
[1723226181689,20.0,153.33,153.28,6.5238]
[1723226181893,51.5223,153.32,153.27,6.5243]
[1723226182193,26.5227,153.31,153.26,6.5247]
[1723226182809,6.5231,153.3,153.26,6.5247]
[1723226183102,26.5228,153.31,153.26,6.5247]
[1723226184006,0.12549,153.35,153.24,36.8]
[1723226184206,6.5207,153.36,153.31,6.5226]
[1723226184787,6.521,153.35,153.3,6.5231]
[1723226185105,6.5235,153.29,153.28,6.5091]
[1723226185313,6.5235,153.29,153.27,16.5061]
[1723226185497,6.5232,153.3,153.23,22.5277]
[1723226185706,6.5232,153.3,153.25,6.5249]
[1723226186005,6.5227,153.31,153.26,6.5247]
[1723226186329,13.27652569,153.33,153.28,6.5239]
[1723226186523,20.0,153.32,153.28,6.5239]
[1723226186817,20.0,153.32,153.23,22.5277]
[1723226187193,6.5232,153.3,153.25,6.5249]
[1723226188108,6.5232,153.3,153.26,6.5247]
[1723226188327,6.5226,153.32,153.27,6.5244]
[1723226188496,6.5226,153.32,153.28,6.5239]
[1723226189519,0.25098,153.31,153.23,22.5277]
[1723226189813,6.5232,153.3,153.25,6.5249]
[1723226190292,20.12549,153.31,153.23,22.5277]
[1723226190505,20.12549,153.31,153.27,6.5244]
[1723226190506,20.0,153.31,153.27,6.5244]
[1723226190719,26.5229,153.31,153.26,6.5247]
[1723226192330,20.0,153.31,153.23,22.5277]
[1723226192516,36.8,153.36,153.24,0.12549]
[1723226192712,36.8,153.36,153.25,36.8]
[1723226193225,36.8,153.34,153.26,6.5247]
[1723226193402,6.5236,153.29,153.24,6.5255]
[1723226193614,6.5232,153.3,153.25,6.525]
[1723226193928,6.5228,153.31,153.26,6.5244]
[1723226194105,6.5232,153.3,153.26,6.5244]
[1723226195236,6.5236,153.29,153.23,22.5277]
[1723226195419,6.5232,153.3,153.23,22.5277]
[1723226196125,6.5232,153.3,153.25,6.5251]
[1723226196430,6.5232,153.3,153.26,6.5247]
[1723226196828,6.5232,153.3,153.25,6.5252]
[1723226197304,6.77378,153.31,153.26,6.5247]
[1723226198328,6.77378,153.31,153.27,6.5242]
[1723226198527,36.8,153.36,153.3,6.5231]
[1723226198718,43.3206,153.36,153.31,6.5225]
[1723226198903,6.5206,153.36,153.31,6.5225]
[1723226199138,13.2738512,153.37,153.26,0.12549]
[1723226199429,6.5202,153.37,153.27,36.8]
[1723226199736,59.7218,153.4,153.29,36.8]
[1723226199930,6.5193,153.39,153.34,6.5212]
[1723226200231,6.5198,153.38,153.33,6.5217]
[1723226200482,36.8,153.38,153.31,21.5952]
[1723226200606,6.5213,153.35,153.31,21.5952]
[1723226200807,6.5213,153.35,153.3,6.523]
[1723226201505,6.5213,153.35,153.31,6.5226]
[1723226202125,6.5206,153.36,153.32,6.5222]
[1723226202432,6.5206,153.36,153.31,6.5226]
[1723226202809,6.5202,153.37,153.33,6.5217]
[1723226203208,6.5202,153.37,153.32,6.5222]
[1723226203531,37.05098,153.38,153.32,6.5222]
[1723226203740,71.77138,153.37,153.32,6.5222]
[1723226205534,53.1782,153.4,153.29,36.8]
[1723226205743,0.12549,153.39,153.36,6.5202]
[1723226206039,6.5185,153.41,153.36,6.5202]
[1723226206213,10.21544324,153.43,153.33,36.8]
[1723226206535,6.5181,153.42,153.34,22.98575044]
[1723226206710,6.5181,153.42,153.37,6.52]
[1723226207634,20.0,153.41,153.34,21.6817]
[1723226207936,20.0,153.42,153.35,36.8]
[1723226208147,36.8,153.46,153.39,6.519]
[1723226208305,6.5176,153.43,153.38,6.5196]
[1723226209640,6.5172,153.44,153.39,6.5192]
[1723226209836,26.5176,153.43,153.39,6.5192]
[1723226210446,26.5176,153.43,153.38,6.5197]
[1723226211154,6.5192,153.4,153.35,6.5207]
[1723226211365,0.12549,153.41,153.34,28.203]
[1723226211541,6.5192,153.4,153.36,6.5205]
[1723226212058,43.3184,153.42,153.37,6.52]
[1723226212233,26.5186,153.41,153.36,6.5205]
[1723226212556,6.5194,153.39,153.34,28.2027]
[1723226212854,6.5189,153.4,153.35,6.5209]
[1723226213426,6.5193,153.39,153.35,6.5209]
[1723226213623,6.5189,153.4,153.35,6.5209]
[1723226213926,26.5185,153.41,153.36,6.5204]
[1723226214327,26.5185,153.41,153.37,6.5201]
[1723226214647,20.0,153.41,153.34,21.6817]
[1723226214849,6.5192,153.4,153.35,6.5208]
[1723226217350,6.5194,153.39,153.35,6.5208]
[1723226217550,6.52,153.38,153.34,15.5202]
[1723226217791,6.52,153.38,153.33,6.5218]
[1723226218253,36.8,153.38,153.3,21.4877]
[1723226218437,6.5205,153.37,153.32,6.5219]
[1723226218750,6.5206,153.36,153.31,6.5226]
[1723226218937,6.5206,153.36,153.32,6.5222]
[1723226219139,6.5202,153.37,153.33,6.5217]
[1723226219647,43.3198,153.38,153.33,6.5217]
[1723226219833,28.62,153.37,153.34,6.5214]
[1723226220030,35.39068,153.39,153.34,6.5214]
[1723226220234,65.0,153.38,153.34,6.5214]
[1723226220450,20.0,153.38,153.35,6.5206]
[1723226220642,42.02131324,153.41,153.36,6.5202]
[1723226220848,20.0,153.4,153.36,6.5202]
[1723226221244,20.0,153.4,153.31,28.62]
[1723226221245,28.62,153.43,153.33,28.62]
[1723226221444,35.1377,153.43,153.33,29.92394137]
[1723226221761,6.5177,153.43,153.38,6.5194]
[1723226222254,6.5182,153.42,153.37,6.52]
[1723226222560,36.77,153.41,153.34,6.5213]
[1723226223258,6.5202,153.37,153.33,6.5217]
[1723226223433,6.5198,153.38,153.33,6.5217]
[1723226223839,6.521,153.35,153.31,6.5226]
[1723226224245,6.5207,153.36,153.32,6.5221]
[1723226224644,43.41569,153.37,153.32,6.5221]
[1723226224858,6.5198,153.38,153.3,21.4877]
[1723226225034,6.5198,153.38,153.33,6.5218]
[1723226225741,36.77,153.39,153.3,21.4877]
[1723226225958,20.0,153.4,153.31,36.77]
[1723226226142,20.0,153.4,153.37,6.5198]
[1723226226455,6.5189,153.4,153.35,6.5209]
[1723226226655,56.77,153.41,153.33,6.5218]
[1723226226857,6.5199,153.38,153.34,6.5214]
[1723226227452,36.89549,153.39,153.3,21.4877]
[1723226227653,6.5207,153.36,153.3,21.4877]
[1723226227847,6.5202,153.37,153.3,21.4877]
[1723226228064,56.77,153.41,153.3,21.4877]
[1723226228269,45.0,153.4,153.3,21.4877]
[1723226228566,20.0,153.39,153.3,21.4877]
[1723226228947,20.0,153.39,153.35,6.5206]
[1723226229664,20.0,153.39,153.36,6.5205]
[1723226229966,36.77,153.41,153.3,21.4877]
[1723226230155,6.5202,153.37,153.33,6.5218]
[1723226230391,6.5197,153.38,153.33,6.5218]
[1723226231364,6.5197,153.38,153.34,6.5214]
[1723226231551,6.5197,153.38,153.33,6.5217]
[1723226231752,45.0,153.37,153.31,6.5223]
[1723226231950,45.12549,153.38,153.31,6.5223]
[1723226232565,36.77,153.37,153.31,6.5223]
[1723226233069,6.5206,153.36,153.32,6.5221]
[1723226233273,6.5206,153.36,153.31,6.5226]
[1723226234068,20.0,153.4,153.3,58.2577]
[1723226234445,20.0,153.4,153.33,6.5215]
[1723226235153,36.77,153.39,153.32,6.5221]
[1723226235484,6.5207,153.36,153.32,6.5222]